lending/lending_fUSD_20250429
["ID","MTS","AMOUNT","RATE_DAILY","PERIOD"]
[359284098,1745892637540,-470.0,0.00027397,2]
[359284099,1745892637552,-470.0,0.00027397,2]
[359284100,1745892637561,-576.12,0.00027397,2]
[359284101,1745892637570,-300.0,0.00027397,2]
[359284102,1745892637580,-745.63,0.00027397,2]
[359284103,1745892637589,-470.0,0.00027397,2]
[359284104,1745892637598,-802.05,0.00027397,2]
[359284105,1745892637607,-470.0,0.00027397,2]
[359284106,1745892637618,-470.0,0.00027397,2]
[359284107,1745892637628,-470.0,0.00027397,2]
[359284108,1745892637637,-524.88,0.00027397,2]
[359284109,1745892637647,-517.89,0.00027397,2]
[359284110,1745892637657,-470.0,0.00027397,2]
[359284111,1745892637666,-470.0,0.00027397,2]
[359284112,1745892637676,-470.0,0.00027397,2]
[359284113,1745892637686,-470.0,0.00027397,2]
[359284114,1745892637695,-470.0,0.00027397,2]
[359284115,1745892637705,-645.46,0.00027397,2]
[359284116,1745892637715,-470.0,0.00027397,2]
[359284117,1745892637724,-470.0,0.00027397,2]
[359284118,1745892637734,-470.0,0.00027397,2]
[359284119,1745892637744,-470.0,0.00027397,2]
[359284120,1745892637754,-470.0,0.00027397,2]
[359284121,1745892637763,-470.0,0.00027397,2]
[359284122,1745892637773,-470.0,0.00027397,2]
[359284123,1745892637783,-470.0,0.00027397,2]
[359284124,1745892637791,-470.0,0.00027397,2]
[359284125,1745892637801,-470.0,0.00027397,2]
[359284126,1745892637810,-470.0,0.00027397,2]
[359284127,1745892637819,-470.0,0.00027397,2]
[359284128,1745892637828,-470.0,0.00027397,2]
[359284129,1745892637836,-470.0,0.00027397,2]
[359284130,1745892637845,-470.0,0.00027397,2]
[359284131,1745892637856,-470.0,0.00027397,2]
[359284132,1745892637867,-470.0,0.00027397,2]
[359284133,1745892637877,-470.0,0.00027397,2]
[359284134,1745892637886,-470.0,0.00027397,2]
[359284135,1745892637895,-236.47488633,0.00027397,2]
[359284136,1745892637904,-470.0,0.00027397,2]
[359284137,1745892637914,-470.0,0.00027397,2]
[359284138,1745892637923,-512.13215475,0.00027397,2]
[359284139,1745892637934,-658.09,0.00027397,2]
[359284140,1745892637945,-470.0,0.00027397,2]
[359284141,1745892637955,-470.0,0.00027397,2]
[359284142,1745892637965,-470.0,0.00027397,2]
[359284143,1745892637975,-242.06032392,0.00027397,2]
[359284145,1745892637984,-470.0,0.00027397,2]
[359284146,1745892637994,-470.0,0.00027397,2]
[359284147,1745892638003,-470.0,0.00027397,2]
[359284148,1745892638013,-505.64939833,0.00027397,2]
[359284149,1745892638023,-1106.53,0.00027397,2]
[359284150,1745892638033,-470.0,0.00027397,2]
[359284151,1745892638042,-470.0,0.00027397,2]
[359284152,1745892638053,-470.0,0.00027397,2]
[359284153,1745892638063,-500.0,0.00027397,2]
[359284154,1745892638073,-500.0,0.00027397,2]
[359284155,1745892638086,-500.0,0.00027397,2]
[359284157,1745892638096,-500.0,0.00027397,2]
[359284158,1745892638106,-470.0,0.00027397,2]
[359284159,1745892638115,-470.0,0.00027397,2]
[359284160,1745892638125,-505.96,0.00027397,2]
[359284161,1745892638135,-470.0,0.00027397,2]
[359284162,1745892638144,-470.0,0.00027397,2]
[359284164,1745892638154,-470.0,0.00027397,2]
[359284166,1745892638164,-870.09,0.00027397,2]
[359284168,1745892638173,-470.0,0.00027397,2]
[359284170,1745892638183,-470.0,0.00027397,2]
[359284171,1745892638193,-470.0,0.00027397,2]
[359284172,1745892638203,-470.0,0.00027397,2]
[359284173,1745892638212,-470.0,0.00027397,2]
[359284174,1745892638222,-923.42642133,0.00027397,2]
[359284176,1745892638241,-7.49357867,0.00027397,2]
[359284179,1745892638251,-470.0,0.00027397,2]
[359284181,1745892638261,-630.91,0.00027397,2]
[359284183,1745892638270,-250.0,0.00027397,2]
[359284184,1745892638278,-470.0,0.00027397,2]
[359284186,1745892638288,-546.68,0.00027397,2]
[359284188,1745892638298,-470.0,0.00027397,2]
[359284189,1745892638307,-470.0,0.00027397,2]
[359284190,1745892638317,-470.0,0.00027397,2]
[359284191,1745892638326,-317.63646858,0.00027397,2]
[359284192,1745892638335,-470.0,0.00027397,2]
[359284193,1745892638345,-155.66627987,0.00027397,2]
[359284194,1745892638354,-470.0,0.00027397,2]
[359284195,1745892638363,-470.0,0.00027397,2]
[359284196,1745892638373,-150.68194248,0.00027397,2]
[359284197,1745892638382,-190.87431148,0.00027397,2]
[359284198,1745892638391,-577.0,0.00027397,2]
[359284199,1745892638400,-470.0,0.00027397,2]
[359284200,1745892638410,-470.0,0.00027397,2]
[359284201,1745892638419,-470.0,0.00027397,2]
[359284202,1745892638429,-593.51,0.00027397,2]
[359284203,1745892638438,-470.0,0.00027397,2]
[359284204,1745892638448,-395.00715593,0.00027397,2]
[359284205,1745892638461,-74.99284407,0.00027397,2]
[359284206,1745892638471,-150.0,0.00027397,2]
[359284207,1745892638480,-470.0,0.00027397,2]
[359284208,1745892638490,-470.0,0.00027397,2]
[359284209,1745892638500,-554.22,0.00027397,2]
[359284210,1745892638510,-150.0,0.00027397,2]
[359284211,1745892638520,-470.0,0.00027397,2]
[359284212,1745892638530,-523.73,0.00027397,2]
[359284213,1745892638540,-470.0,0.00027397,2]
[359284214,1745892638550,-571.76,0.00027397,2]
[359284215,1745892638560,-373.59819489,0.00027397,2]
[359284216,1745892638569,-470.0,0.00027397,2]
[359284217,1745892638578,-470.0,0.00027397,2]
[359284218,1745892638587,-470.0,0.00027397,2]
[359284219,1745892638596,-628.44,0.00027397,2]
[359284220,1745892638606,-498.76,0.00027397,2]
[359284221,1745892638616,-470.0,0.00027397,2]
[359284222,1745892638626,-470.0,0.00027397,2]
[359284223,1745892638636,-470.0,0.00027397,2]
[359284224,1745892638645,-470.0,0.00027397,2]
[359284225,1745892638654,-470.0,0.00027397,2]
[359284226,1745892638663,-470.0,0.00027397,2]
[359284227,1745892638673,-224.83684574,0.00027397,2]
[359284228,1745892638685,-245.16315426,0.00027397,2]
[359284229,1745892638695,-600.39,0.00027397,2]
[359284230,1745892638705,-470.0,0.00027397,2]
[359284231,1745892638714,-470.0,0.00027397,2]
[359284232,1745892638723,-14.44684574,0.00027397,2]
[359284233,1745892638735,-361.41704813,0.00027397,2]
[359284234,1745892638747,-94.13610613,0.00027397,2]
[359284235,1745892638756,-470.0,0.00027397,2]
[359284236,1745892638766,-470.0,0.00027397,2]
[359284237,1745892638780,-470.0,0.00027397,2]
[359284238,1745892638801,-470.0,0.00027397,2]
[359284239,1745892638818,-127.75772506,0.00027397,2]
[359284240,1745892638830,-342.24227494,0.00027397,2]
[359284241,1745892638841,-231.07515122,0.00027397,2]
[359284242,1745892638939,-238.92484878,0.00027397,2]
[359284243,1745892638949,-167.44147132,0.00027397,2]
[359284244,1745892638960,-302.55852868,0.00027397,2]
[359284245,1745892638970,-168.00000933,0.00027397,2]
[359284246,1745892638981,-301.99999067,0.00027397,2]
[359284247,1745892638990,-293.63988414,0.00027397,2]
[359284248,1745892639013,-260.81011586,0.00027397,2]
[359284249,1745892639023,-917.475519,0.00027397,2]
[359284250,1745892639032,-52.89732367,0.00027397,2]
[359284251,1745892639043,-463.69267633,0.00027397,2]
[359284252,1745892639053,-178.856008,0.00027397,2]
[359284253,1745892639063,-470.0,0.00027397,2]
[359284254,1745892639072,-470.0,0.00027397,2]
[359284255,1745892639085,-153.67215762,0.00027397,2]
[359284256,1745892639116,470.0,0.00038356,30]
[359284257,1745892639319,-154.89333593,0.00027397,2]
[359284258,1745892639329,-470.0,0.00027397,2]
[359284259,1745892639338,-411.12451899,0.00027397,2]
[359284260,1745892639350,-58.87548101,0.00027397,2]
[359284261,1745892639360,-736.71,0.00027397,2]
[359284262,1745892639370,-470.0,0.00027397,2]
[359284263,1745892639380,-470.0,0.00027397,2]
[359284264,1745892639389,-470.0,0.00027397,2]
[359284265,1745892639398,-470.0,0.00027397,2]
[359284266,1745892639408,-470.0,0.00027397,2]
[359284267,1745892639417,-583.914723,0.00027397,2]
[359284268,1745892639426,-470.0,0.00027397,2]
[359284269,1745892639436,-470.0,0.00027397,2]
[359284270,1745892639445,-470.0,0.00027397,2]
[359284271,1745892639455,-655.13,0.00027397,2]
[359284272,1745892639464,-470.0,0.00027397,2]
[359284273,1745892639474,-894.69,0.00027397,2]
[359284274,1745892639484,-470.0,0.00027397,2]
[359284275,1745892639493,-241.28055779,0.00027397,2]
[359284276,1745892639505,-399.03944221,0.00027397,2]
[359284277,1745892639514,-474.34,0.00027397,2]
[359284278,1745892639524,-226.63173331,0.00027397,2]
[359284279,1745892639533,-470.0,0.00027397,2]
[359284280,1745892639542,-230.77850547,0.00027397,2]
[359284281,1745892639562,-239.22149453,0.00027397,2]
[359284282,1745892639571,-470.0,0.00027397,2]
[359284283,1745892639580,-168.642672,0.00027397,2]
[359284284,1745892639590,-630.29,0.00027397,2]
[359284285,1745892639599,-295.54583348,0.00027397,2]
[359284286,1745892639610,-174.45416652,0.00027397,2]
[359284287,1745892639619,-470.0,0.00027397,2]
[359284288,1745892639628,-470.0,0.00027397,2]
[359284289,1745892639638,-470.0,0.00027397,2]
[359284290,1745892639647,-470.0,0.00027397,2]
[359284291,1745892639656,-470.0,0.00027397,2]
[359284292,1745892639665,-500.0,0.00027397,2]
[359284293,1745892639674,-455.44859516,0.00027397,2]
[359284294,1745892639685,-14.55140484,0.00027397,2]
[359284295,1745892639695,-421.09178306,0.00027397,2]
[359284296,1745892639706,-48.90821694,0.00027397,2]
[359284297,1745892639715,-470.0,0.00027397,2]
[359284298,1745892639724,-392.98873838,0.00027397,2]
[359284299,1745892639735,-77.01126162,0.00027397,2]
[359284300,1745892639744,-470.0,0.00027397,2]
[359284301,1745892639753,-470.0,0.00027397,2]
[359284302,1745892639763,-470.0,0.00027397,2]
[359284303,1745892639772,-470.0,0.00027397,2]
[359284304,1745892639781,-470.0,0.00027397,2]
[359284305,1745892639790,-470.0,0.00027397,2]
[359284306,1745892639801,-520.89184436,0.00027397,2]
[359284307,1745892639811,-470.0,0.00027397,2]
[359284308,1745892639820,-470.0,0.00027397,2]
[359284309,1745892639830,-470.0,0.00027397,2]
[359284310,1745892639840,-470.0,0.00027397,2]
[359284311,1745892639849,-470.0,0.00027397,2]
[359284312,1745892639859,-470.0,0.00027397,2]
[359284313,1745892639868,-470.0,0.00027397,2]
[359284314,1745892639877,-470.0,0.00027397,2]
[359284315,1745892639887,-470.0,0.00027397,2]
[359284316,1745892639895,-470.0,0.00027397,2]
[359284317,1745892639904,-470.0,0.00027397,2]
[359284318,1745892639914,-470.0,0.00027397,2]
[359284319,1745892639923,-673.22,0.00027397,2]
[359284320,1745892639932,-470.0,0.00027397,2]
[359284321,1745892639942,-572.66,0.00027397,2]
[359284322,1745892639952,-470.0,0.00027397,2]
[359284323,1745892639960,-470.0,0.00027397,2]
[359284324,1745892639969,-470.0,0.00027397,2]
[359284325,1745892639978,-470.0,0.00027397,2]
[359284326,1745892639988,-470.0,0.00027397,2]
[359284327,1745892639997,-470.0,0.00027397,2]
[359284328,1745892640007,-470.0,0.00027397,2]
[359284329,1745892640017,-470.0,0.00027397,2]
[359284330,1745892640026,-470.0,0.00027397,2]
[359284331,1745892640036,-470.0,0.00027397,2]
[359284332,1745892640045,-470.0,0.00027397,2]
[359284333,1745892640055,-470.0,0.00027397,2]
[359284334,1745892640066,-470.0,0.00027397,2]
[359284335,1745892640076,-470.0,0.00027397,2]
[359284336,1745892640089,-731.66,0.00027397,2]
[359284337,1745892640099,-462.56976833,0.00027397,2]
[359284338,1745892640108,-470.0,0.00027397,2]
[359284339,1745892640118,-755.29,0.00027397,2]
[359284340,1745892640130,-470.0,0.00027397,2]
[359284341,1745892640140,-470.0,0.00027397,2]
[359284342,1745892640149,-470.0,0.00027397,2]
[359284343,1745892640160,-470.0,0.00027397,2]
[359284344,1745892640170,-470.0,0.00027397,2]
[359284345,1745892640180,-470.0,0.00027397,2]
[359284346,1745892640190,-470.0,0.00027397,2]
[359284348,1745892640200,-470.0,0.00027397,2]
[359284349,1745892640210,-470.0,0.00027397,2]
[359284350,1745892640219,-470.0,0.00027397,2]
[359284351,1745892640229,-280.15348994,0.00027397,2]
[359284352,1745892640239,-470.0,0.00027397,2]
[359284353,1745892640249,-470.0,0.00027397,2]
[359284354,1745892640259,-470.0,0.00027397,2]
[359284355,1745892640269,-605.49957967,0.00027397,2]
[359284356,1745892640278,-470.0,0.00027397,2]
[359284357,1745892640287,-470.0,0.00027397,2]
[359284358,1745892640296,-470.0,0.00027397,2]
[359284359,1745892640310,-606.07,0.00027397,2]
[359284361,1745892640320,-470.0,0.00027397,2]
[359284363,1745892640330,-470.0,0.00027397,2]
[359284365,1745892640341,-470.0,0.00027397,2]
[359284367,1745892640352,-470.0,0.00027397,2]
[359284368,1745892640362,-470.0,0.00027397,2]
[359284370,1745892640372,-470.0,0.00027397,2]
[359284372,1745892640382,-580.67,0.00027397,2]
[359284374,1745892640391,-470.0,0.00027397,2]
[359284376,1745892640401,-470.0,0.00027397,2]
[359284378,1745892640410,-470.0,0.00027397,2]
[359284379,1745892640420,-470.0,0.00027397,2]
[359284380,1745892640430,-473.02221784,0.00027397,2]
[359284381,1745892640439,-470.0,0.00027397,2]
[359284382,1745892640449,-470.0,0.00027397,2]
[359284383,1745892640459,-470.0,0.00027397,2]
[359284384,1745892640469,-461.10576155,0.00027397,2]
[359284385,1745892640479,-470.0,0.00027397,2]
[359284386,1745892640488,-470.0,0.00027397,2]
[359284387,1745892640497,-472.0,0.00027397,2]
[359284388,1745892640675,-279.5324683,0.00027397,2]
[359284389,1745892640685,-551.72,0.00027397,2]
[359284390,1745892640694,-545.54,0.00027397,2]
[359284391,1745892640703,-539.2721387,0.00027397,2]
[359284392,1745892641194,-90.2278613,0.00027397,2]
[359284393,1745892641203,-470.0,0.00027397,2]
[359284394,1745892641212,-470.0,0.00027397,2]
[359284395,1745892641222,-470.0,0.00027397,2]
[359284396,1745892641231,-470.0,0.00027397,2]
[359284397,1745892641240,-383.14741434,0.00027397,2]
[359284398,1745892641252,-86.85258566,0.00027397,2]
[359284399,1745892641262,-470.0,0.00027397,2]
[359284400,1745892641271,-470.0,0.00027397,2]
[359284401,1745892641280,-188.07530995,0.00027397,2]
[359284402,1745892641351,-281.92469005,0.00027397,2]
[359284403,1745892641361,-391.25564441,0.00027397,2]
[359284404,1745892641371,-193.83142275,0.00027397,2]
[359284405,1745892641464,470.0,0.00038356,30]
[359284406,1745892641601,470.0,0.00038356,30]
[359284407,1745892641727,662.4,0.00038356,30]
[359284408,1745892641995,-2482.18350471,0.00027297,2]
[359284409,1745892642005,-276.16857725,0.00027397,2]
[359284410,1745892642015,-470.0,0.00027397,2]
[359284411,1745892642024,-470.0,0.00027397,2]
[359284412,1745892642033,-470.0,0.00027397,2]
[359284413,1745892642042,-470.0,0.00027397,2]
[359284414,1745892642052,-470.0,0.00027397,2]
[359284415,1745892642061,-500.0,0.00027397,2]
[359284416,1745892642071,-470.0,0.00027397,2]
[359284417,1745892642082,-470.0,0.00027397,2]
[359284418,1745892642091,-470.0,0.00027397,2]
[359284419,1745892642100,-192.65300606,0.00027397,2]
[359284420,1745892642109,-470.0,0.00027397,2]
[359284421,1745892642117,-470.0,0.00027397,2]
[359284422,1745892642127,-470.0,0.00027397,2]
[359284423,1745892642137,-470.0,0.00027397,2]
[359284424,1745892642146,-470.0,0.00027397,2]
[359284425,1745892642155,-530.6,0.00027397,2]
[359284426,1745892642164,-470.0,0.00027397,2]
[359284427,1745892642174,-470.0,0.00027397,2]
[359284428,1745892642183,-470.0,0.00027397,2]
[359284430,1745892642192,-470.0,0.00027397,2]
[359284431,1745892642201,-470.0,0.00027397,2]
[359284433,1745892642210,-1000.0,0.00027397,2]
[359284436,1745892642219,-470.0,0.00027397,2]
[359284438,1745892642231,-540.28795138,0.00027397,2]
[359284440,1745892642240,-470.0,0.00027397,2]
[359284441,1745892642249,-470.0,0.00027397,2]
[359284442,1745892642258,-470.0,0.00027397,2]
[359284443,1745892642267,-470.0,0.00027397,2]
[359284444,1745892642276,-470.0,0.00027397,2]
[359284445,1745892642285,-509.66701739,0.00027397,2]
[359284447,1745892642293,-690.79,0.00027397,2]
[359284448,1745892642304,-470.0,0.00027397,2]
[359284450,1745892642312,-470.0,0.00027397,2]
[359284452,1745892642322,-470.0,0.00027397,2]
[359284454,1745892642332,-500.0,0.00027397,2]
[359284456,1745892642341,-406.15558954,0.00027397,2]
[359284457,1745892642351,-470.0,0.00027397,2]
[359284458,1745892642360,-187.0021645,0.00027397,2]
[359284459,1745892642369,-528.84070716,0.00027397,2]
[359284460,1745892642378,-470.0,0.00027397,2]
[359284462,1745892642388,-486.75,0.00027397,2]
[359284464,1745892642397,-470.0,0.00027397,2]
[359284466,1745892642406,-470.0,0.00027397,2]
[359284469,1745892642415,-470.0,0.00027397,2]
[359284471,1745892642425,-470.0,0.00027397,2]
[359284473,1745892642434,-470.0,0.00027397,2]
[359284475,1745892642443,-470.0,0.00027397,2]
[359284477,1745892642453,-604.96299255,0.00027397,2]
[359284479,1745892642463,-470.0,0.00027397,2]
[359284483,1745892642472,-470.0,0.00027397,2]
[359284484,1745892642481,-470.0,0.00027397,2]
[359284486,1745892642491,-827.21,0.00027397,2]
[359284489,1745892642502,-515.83,0.00027397,2]
[359284490,1745892642511,-470.0,0.00027397,2]
[359284491,1745892642520,-470.0,0.00027397,2]
[359284492,1745892642530,-470.0,0.00027397,2]
[359284493,1745892642539,-542.57,0.00027397,2]
[359284494,1745892642548,-472.95,0.00027397,2]
[359284495,1745892642558,-470.0,0.00027397,2]
[359284496,1745892642567,-591.0,0.00027397,2]
[359284497,1745892642576,-544.51058844,0.00027397,2]
[359284498,1745892642586,-500.0,0.00027397,2]
[359284499,1745892642595,-463.49281927,0.00027397,2]
[359284500,1745892642604,-470.0,0.00027397,2]
[359284501,1745892642613,-470.0,0.00027397,2]
[359284502,1745892642622,-470.0,0.00027397,2]
[359284503,1745892642632,-470.0,0.00027397,2]
[359284504,1745892642641,-470.0,0.00027397,2]
[359284505,1745892642650,-507.51427689,0.00027397,2]
[359284506,1745892642660,-470.0,0.00027397,2]
[359284507,1745892642669,-470.0,0.00027397,2]
[359284508,1745892642678,-470.0,0.00027397,2]
[359284509,1745892642687,-470.0,0.00027397,2]
[359284510,1745892642696,-470.0,0.00027397,2]
[359284511,1745892642705,-470.0,0.00027397,2]
[359284512,1745892642714,-470.0,0.00027397,2]
[359284513,1745892642723,-470.0,0.00027397,2]
[359284514,1745892642732,-470.0,0.00027397,2]
[359284515,1745892642741,-470.0,0.00027397,2]
[359284516,1745892642750,-625.99,0.00027397,2]
[359284517,1745892642759,-273.86608913,0.00027397,2]
[359284518,1745892642769,-470.0,0.00027397,2]
[359284519,1745892642778,-470.0,0.00027397,2]
[359284520,1745892642787,-470.0,0.00027397,2]
[359284521,1745892642796,-501.93,0.00027397,2]
[359284522,1745892642805,-470.0,0.00027397,2]
[359284523,1745892642814,-470.0,0.00027397,2]
[359284524,1745892642823,-500.0,0.00027397,2]
[359284525,1745892642832,-470.0,0.00027397,2]
[359284526,1745892642841,-475.97,0.00027397,2]
[359284527,1745892642850,-470.0,0.00027397,2]
[359284528,1745892642859,-707.65,0.00027397,2]
[359284529,1745892642868,-470.0,0.00027397,2]
[359284530,1745892642878,-873.08,0.00027397,2]
[359284531,1745892642887,-651.16,0.00027397,2]
[359284532,1745892642896,-266.21113618,0.00027397,2]
[359284533,1745892642905,-470.0,0.00027397,2]
[359284534,1745892642914,-470.0,0.00027397,2]
[359284535,1745892642923,-476.39136021,0.00027397,2]
[359284536,1745892642932,-567.73,0.00027397,2]
[359284539,1745892642946,-685.95,0.00027397,2]
[359284541,1745892642955,-494.15,0.00027397,2]
[359284543,1745892642964,-470.0,0.00027397,2]
[359284545,1745892642973,-470.0,0.00027397,2]
[359284547,1745892642982,-470.0,0.00027397,2]
[359284568,1745892643174,-470.0,0.00027397,2]
[359284570,1745892643186,-470.0,0.00027397,2]
[359284572,1745892643195,-470.0,0.00027397,2]
[359284574,1745892643204,-470.0,0.00027397,2]
[359284576,1745892643214,-272.23917034,0.00027397,2]
[359284578,1745892643223,-470.0,0.00027397,2]
[359284580,1745892643232,-885.86,0.00027397,2]
[359284582,1745892643242,-470.0,0.00027397,2]
[359284584,1745892643250,-470.0,0.00027397,2]
[359284586,1745892643259,-1436.98,0.00027397,2]
[359284588,1745892643269,-800.77,0.00027397,2]
[359284590,1745892643278,-500.0,0.00027397,2]
[359284591,1745892643287,-470.0,0.00027397,2]
[359284594,1745892643297,-470.0,0.00027397,2]
[359284596,1745892643307,-470.0,0.00027397,2]
[359284598,1745892643316,-470.0,0.00027397,2]
[359284600,1745892643326,-470.0,0.00027397,2]
[359284602,1745892643335,-470.0,0.00027397,2]
[359284603,1745892643345,-708.67,0.00027397,2]
[359284605,1745892643354,-470.0,0.00027397,2]
[359284607,1745892643364,-470.0,0.00027397,2]
[359284609,1745892643373,-470.0,0.00027397,2]
[359284611,1745892643382,-470.0,0.00027397,2]
[359284614,1745892643392,-470.0,0.00027397,2]
[359284616,1745892643401,-470.0,0.00027397,2]
[359284618,1745892643411,-470.0,0.00027397,2]
[359284619,1745892643420,-470.0,0.00027397,2]
[359284621,1745892643430,-1982.19,0.00027397,2]
[359284623,1745892643439,-470.0,0.00027397,2]
[359284625,1745892643449,-470.0,0.00027397,2]
[359284627,1745892643459,-470.0,0.00027397,2]
[359284629,1745892643468,-470.0,0.00027397,2]
[359284631,1745892643479,-470.0,0.00027397,2]
[359284633,1745892643488,-470.0,0.00027397,2]
[359284635,1745892643498,-470.0,0.00027397,2]
[359284637,1745892643507,-501.18985111,0.00027397,2]
[359284640,1745892643517,-470.0,0.00027397,2]
[359284642,1745892643526,-507.16,0.00027397,2]
[359284644,1745892643536,-470.0,0.00027397,2]
[359284646,1745892643546,-470.0,0.00027397,2]
[359284648,1745892643556,-470.0,0.00027397,2]
[359284650,1745892643566,-557.83,0.00027397,2]
[359284652,1745892643575,-514.13,0.00027397,2]
[359284654,1745892643584,-304.75025153,0.00027397,2]
[359284656,1745892643593,-470.0,0.00027397,2]
[359284658,1745892643602,-765.06,0.00027397,2]
[359284660,1745892643612,-470.0,0.00027397,2]
[359284662,1745892643622,-470.0,0.00027397,2]
[359284664,1745892643631,-470.0,0.00027397,2]
[359284666,1745892643640,-470.0,0.00027397,2]
[359284668,1745892643649,-470.0,0.00027397,2]
[359284670,1745892643659,-470.0,0.00027397,2]
[359284672,1745892643668,-635.76,0.00027397,2]
[359284674,1745892643678,-470.0,0.00027397,2]
[359284676,1745892643687,-470.0,0.00027397,2]
[359284678,1745892643696,-470.0,0.00027397,2]
[359284679,1745892643705,-470.0,0.00027397,2]
[359284681,1745892643714,-470.0,0.00027397,2]
[359284684,1745892643724,-470.0,0.00027397,2]
[359284686,1745892643733,-470.0,0.00027397,2]
[359284688,1745892643742,-470.0,0.00027397,2]
[359284690,1745892643752,-702.71,0.00027397,2]
[359284692,1745892643761,-470.0,0.00027397,2]
[359284694,1745892643771,-470.0,0.00027397,2]
[359284696,1745892643780,-470.0,0.00027397,2]
[359284698,1745892643789,-593.25,0.00027397,2]
[359284700,1745892643798,-470.0,0.00027397,2]
[359284702,1745892643807,-705.91,0.00027397,2]
[359284704,1745892643816,-470.0,0.00027397,2]
[359284706,1745892643825,-574.96,0.00027397,2]
[359284708,1745892643835,-470.0,0.00027397,2]
[359284710,1745892643844,-543.96,0.00027397,2]
[359284712,1745892643852,-470.0,0.00027397,2]
[359284713,1745892643860,-470.0,0.00027397,2]
[359284715,1745892643869,-1493.97,0.00027397,2]
[359284717,1745892643878,-470.0,0.00027397,2]
[359284719,1745892643886,-470.0,0.00027397,2]
[359284721,1745892643896,-665.56,0.00027397,2]
[359284723,1745892643904,-733.6,0.00027397,2]
[359284725,1745892643912,-470.0,0.00027397,2]
[359284727,1745892643921,-883.58,0.00027397,2]
[359284729,1745892643930,-571.21,0.00027397,2]
[359284731,1745892643939,-602.17,0.00027397,2]
[359284733,1745892643948,-470.0,0.00027397,2]
[359284735,1745892643957,-470.0,0.00027397,2]
[359284737,1745892643966,-470.0,0.00027397,2]
[359284739,1745892643974,-470.0,0.00027397,2]
[359284741,1745892643983,-470.0,0.00027397,2]
[359284743,1745892643993,-470.0,0.00027397,2]
[359284746,1745892644003,-470.0,0.00027397,2]
[359284748,1745892644012,-470.0,0.00027397,2]
[359284750,1745892644022,-470.0,0.00027397,2]
[359284752,1745892644031,-510.52,0.00027397,2]
[359284754,1745892644040,-470.0,0.00027397,2]
[359284756,1745892644050,-639.0,0.00027397,2]
[359284758,1745892644060,-470.0,0.00027397,2]
[359284760,1745892644069,-813.51,0.00027397,2]
[359284762,1745892644079,-470.0,0.00027397,2]
[359284764,1745892644093,-470.0,0.00027397,2]
[359284766,1745892644102,-944.51,0.00027397,2]
[359284768,1745892644113,-470.0,0.00027397,2]
[359284770,1745892644123,-150.0,0.00027397,2]
[359284772,1745892644133,-1967.41,0.00027397,2]
[359284774,1745892644143,-470.0,0.00027397,2]
[359284776,1745892644152,-150.0,0.00027397,2]
[359284778,1745892644163,-470.0,0.00027397,2]